[Event "*** Titled Tuesday Blitz"]
[Site "Chess.com"]
[Date "2018.08.07"]
[Round "2"]
[White "evgenysharapov"]
[Black "NemtsevIgor"]
[Result "0-1"]
[WhiteElo "2329"]
[BlackElo "2392"]
[TimeControl "180+2"]
[EndTime "13:21:01 PDT"]
[Termination "NemtsevIgor won by checkmate"]

1. e4 {[%clk 0:03:01.7]} 1... c6 {[%clk 0:03:00.5]} 2. d4 {[%clk 0:03:01.8]}
2... d5 {[%clk 0:03:00]} 3. Nc3 {[%clk 0:03:02.3]} 3... h6 {[%clk 0:03:00.5]} 4.
Nf3 {[%clk 0:03:01.5]} 4... Nf6 {[%clk 0:03:00.8]} 5. e5 {[%clk 0:03:02.1]} 5...
Ne4 {[%clk 0:03:02]} 6. Bd3 {[%clk 0:02:54.8]} 6... Bf5 {[%clk 0:03:03]} 7. O-O
{[%clk 0:02:50.5]} 7... Nxc3 {[%clk 0:03:04]} 8. bxc3 {[%clk 0:02:50.8]} 8...
Bxd3 {[%clk 0:03:05.9]} 9. Qxd3 {[%clk 0:02:39.5]} 9... e6 {[%clk 0:03:06]} 10.
Rb1 {[%clk 0:02:39.1]} 10... b5 {[%clk 0:03:06.4]} 11. a4 {[%clk 0:02:29.6]}
11... a6 {[%clk 0:03:06.9]} 12. Nd2 {[%clk 0:02:22.9]} 12... Be7 {[%clk
0:02:59.9]} 13. f4 {[%clk 0:02:20.5]} 13... g6 {[%clk 0:03:00.6]} 14. Nf3 {[%clk
0:02:18.5]} 14... h5 {[%clk 0:02:56.1]} 15. g3 {[%clk 0:02:07.6]} 15... Nd7
{[%clk 0:02:56.4]} 16. axb5 {[%clk 0:02:00.4]} 16... cxb5 {[%clk 0:02:55.9]} 17.
Kg2 {[%clk 0:01:58.7]} 17... Nb6 {[%clk 0:02:54.5]} 18. h3 {[%clk 0:01:45.8]}
18... Qc7 {[%clk 0:02:46.3]} 19. g4 {[%clk 0:01:46.1]} 19... Qc4 {[%clk
0:02:46.9]} 20. f5 {[%clk 0:01:35.9]} 20... Qxd3 {[%clk 0:02:40.4]} 21. cxd3
{[%clk 0:01:36.4]} 21... hxg4 {[%clk 0:02:40.3]} 22. hxg4 {[%clk 0:01:36.8]}
22... gxf5 {[%clk 0:02:40.8]} 23. gxf5 {[%clk 0:01:37.5]} 23... Kd7 {[%clk
0:02:40.8]} 24. f6 {[%clk 0:01:35.6]} 24... Rag8+ {[%clk 0:02:31.9]} 25. Kf2
{[%clk 0:01:23]} 25... Bd8 {[%clk 0:02:32.9]} 26. Bd2 {[%clk 0:01:21.6]} 26...
Bc7 {[%clk 0:02:21.8]} 27. Rh1 {[%clk 0:01:20.3]} 27... Rxh1 {[%clk 0:02:01.3]}
28. Rxh1 {[%clk 0:01:19.4]} 28... a5 {[%clk 0:02:02.8]} 29. Rh7 {[%clk
0:01:07.9]} 29... Ke8 {[%clk 0:02:01.1]} 30. Ng5 {[%clk 0:01:07.6]} 30... Rf8
{[%clk 0:01:32.3]} 31. Bc1 {[%clk 0:01:07.1]} 31... b4 {[%clk 0:01:30.7]} 32.
cxb4 {[%clk 0:01:02]} 32... axb4 {[%clk 0:01:31.6]} 33. Ke2 {[%clk 0:00:46.2]}
33... Na4 {[%clk 0:01:27.4]} 34. Kd2 {[%clk 0:00:44.4]} 34... b3 {[%clk
0:01:22.4]} 35. Ba3 {[%clk 0:00:41.1]} 35... Ba5+ {[%clk 0:01:23.5]} 36. Kd1
{[%clk 0:00:29.5]} 36... Rg8 {[%clk 0:01:17.4]} 37. Rxf7 {[%clk 0:00:25.2]}
37... Rxg5 {[%clk 0:01:14.1]} 38. Re7+ {[%clk 0:00:25.7]} 38... Kd8 {[%clk
0:01:15.1]} 39. f7 {[%clk 0:00:26.5]} 39... Nc3+ {[%clk 0:01:04.5]} 40. Kc1
{[%clk 0:00:21.3]} 40... Rg1+ {[%clk 0:00:47.2]} 41. Kb2 {[%clk 0:00:21.8]}
41... Rb1# {[%clk 0:00:41.4]} 0-1

[Event "*** Titled Tuesday Blitz"]
[Site "Chess.com"]
[Date "2018.08.07"]
[Round "2"]
[White "jk13"]
[Black "RitvarsReimanis"]
[Result "1-0"]
[WhiteElo "2513"]
[BlackElo "2434"]
[TimeControl "180+2"]
[EndTime "13:21:08 PDT"]
[Termination "jk13 won by resignation"]

1. e4 {[%clk 0:03:01.7]} 1... c5 {[%clk 0:02:59.9]} 2. c3 {[%clk 0:03:02.2]}
2... Nf6 {[%clk 0:03:00.6]} 3. e5 {[%clk 0:03:03.4]} 3... Nd5 {[%clk 0:03:01.7]}
4. Bc4 {[%clk 0:03:05.3]} 4... Nb6 {[%clk 0:03:02.4]} 5. Bb3 {[%clk 0:03:06.9]}
5... d6 {[%clk 0:03:03.8]} 6. exd6 {[%clk 0:03:07.8]} 6... e6 {[%clk 0:03:05.1]}
7. Nf3 {[%clk 0:03:09.3]} 7... Bxd6 {[%clk 0:03:06.1]} 8. O-O {[%clk 0:03:10.9]}
8... O-O {[%clk 0:03:07.3]} 9. d4 {[%clk 0:03:12.6]} 9... Nc6 {[%clk 0:03:07.4]}
10. Be3 {[%clk 0:03:11.2]} 10... cxd4 {[%clk 0:03:07.3]} 11. Nxd4 {[%clk
0:03:13.1]} 11... Nxd4 {[%clk 0:03:06.9]} 12. Qxd4 {[%clk 0:03:15]} 12... e5
{[%clk 0:03:03.2]} 13. Qe4 {[%clk 0:03:10.5]} 13... Qe7 {[%clk 0:03:01.1]} 14.
Nd2 {[%clk 0:03:05.8]} 14... Kh8 {[%clk 0:03:00.1]} 15. f4 {[%clk 0:02:57.8]}
15... f5 {[%clk 0:02:58.6]} 16. Qf3 {[%clk 0:02:59.2]} 16... e4 {[%clk
0:02:51.4]} 17. Qf2 {[%clk 0:03:00.2]} 17... Qc7 {[%clk 0:02:42.6]} 18. Rad1
{[%clk 0:02:59.2]} 18... Bd7 {[%clk 0:02:42.2]} 19. Rfe1 {[%clk 0:02:51.2]}
19... Rf6 {[%clk 0:02:20.8]} 20. Nf1 {[%clk 0:02:48.9]} 20... Bb5 {[%clk
0:02:14.6]} 21. Ng3 {[%clk 0:02:43.4]} 21... Raf8 {[%clk 0:01:44.1]} 22. Kh1
{[%clk 0:02:13.7]} 22... Bd3 {[%clk 0:01:40]} 23. Ne2 {[%clk 0:01:58.7]} 23...
Bc4 {[%clk 0:01:00.1]} 24. Nd4 {[%clk 0:01:47.4]} 24... Bxb3 {[%clk 0:00:59.9]}
25. axb3 {[%clk 0:01:48.1]} 25... Bc5 {[%clk 0:00:36.1]} 26. b4 {[%clk
0:01:28.8]} 26... Bxd4 {[%clk 0:00:36.3]} 27. Bxd4 {[%clk 0:01:30.7]} 27... Rg6
{[%clk 0:00:36]} 28. Be5 {[%clk 0:01:27.9]} 28... Qc6 {[%clk 0:00:37.3]} 29. Qd4
{[%clk 0:01:19.7]} 29... h6 {[%clk 0:00:36.5]} 30. b3 {[%clk 0:01:20]} 30... e3
{[%clk 0:00:37.2]} 31. Re2 {[%clk 0:01:20.6]} 31... Kh7 {[%clk 0:00:29.7]} 32.
c4 {[%clk 0:01:20.6]} 32... Nc8 {[%clk 0:00:26.6]} 33. Qxe3 {[%clk 0:01:19.2]}
33... b6 {[%clk 0:00:27.6]} 34. b5 {[%clk 0:01:19.6]} 34... Qb7 {[%clk
0:00:27.3]} 35. Qd3 {[%clk 0:01:15.8]} 35... Ne7 {[%clk 0:00:27.8]} 36. Qd7
{[%clk 0:01:14.9]} 36... Qxd7 {[%clk 0:00:24.9]} 37. Rxd7 {[%clk 0:01:16.8]}
37... Ng8 {[%clk 0:00:25.8]} 38. Rxa7 {[%clk 0:01:15.7]} 38... Rd8 {[%clk
0:00:26.8]} 39. h3 {[%clk 0:01:16.5]} 39... Re8 {[%clk 0:00:27.9]} 40. Rd2
{[%clk 0:01:16.2]} 40... Nf6 {[%clk 0:00:28.9]} 41. Rd6 {[%clk 0:01:13.1]} 41...
Ne4 {[%clk 0:00:27.9]} 42. Rxg6 {[%clk 0:01:13.7]} 42... Kxg6 {[%clk 0:00:29.8]}
43. Rxg7+ {[%clk 0:01:14.9]} 43... Kh5 {[%clk 0:00:31.2]} 44. Kh2 {[%clk
0:01:14.3]} 44... Nf2 {[%clk 0:00:30]} 45. Rb7 {[%clk 0:01:01.8]} 45... Re6
{[%clk 0:00:29.8]} 46. Rc7 {[%clk 0:01:01]} 46... Ne4 {[%clk 0:00:26.8]} 47. Rc6
{[%clk 0:01:02]} 47... Re8 {[%clk 0:00:24]} 48. Bg7 {[%clk 0:00:59.1]} 1-0

[Event "*** Titled Tuesday Blitz"]
[Site "Chess.com"]
[Date "2018.08.07"]
[Round "2"]
[White "hsskoo"]
[Black "MikeSailer"]
[Result "1-0"]
[WhiteElo "2158"]
[BlackElo "2074"]
[TimeControl "180+2"]
[EndTime "13:21:08 PDT"]
[Termination "hsskoo won by resignation"]

1. g3 {[%clk 0:02:53.1]} 1... d5 {[%clk 0:02:59.2]} 2. Bg2 {[%clk 0:02:52.5]}
2... Nf6 {[%clk 0:03:00.5]} 3. c4 {[%clk 0:02:53]} 3... c6 {[%clk 0:03:00.7]} 4.
Nf3 {[%clk 0:02:54.3]} 4... Bf5 {[%clk 0:03:01.1]} 5. O-O {[%clk 0:02:55.7]}
5... e6 {[%clk 0:03:02]} 6. Nc3 {[%clk 0:02:55.7]} 6... Be7 {[%clk 0:02:54.9]}
7. b3 {[%clk 0:02:53.5]} 7... O-O {[%clk 0:02:54.5]} 8. d3 {[%clk 0:02:54.2]}
8... h6 {[%clk 0:02:51.5]} 9. Bd2 {[%clk 0:02:46.6]} 9... Nbd7 {[%clk 0:02:48]}
10. d4 {[%clk 0:02:44.3]} 10... Ne4 {[%clk 0:02:46.4]} 11. Nxe4 {[%clk
0:02:31.5]} 11... Bxe4 {[%clk 0:02:46.9]} 12. Rc1 {[%clk 0:02:30.2]} 12... Rc8
{[%clk 0:02:44.4]} 13. Bc3 {[%clk 0:02:30.1]} 13... Nf6 {[%clk 0:02:31.8]} 14.
Qd2 {[%clk 0:02:28.4]} 14... Qb6 {[%clk 0:02:06.6]} 15. Ba5 {[%clk 0:02:25.2]}
15... Qa6 {[%clk 0:02:05.4]} 16. Bc3 {[%clk 0:02:25.6]} 16... dxc4 {[%clk
0:01:56.6]} 17. bxc4 {[%clk 0:02:23.9]} 17... Ba3 {[%clk 0:01:42.9]} 18. Bb2
{[%clk 0:02:21.4]} 18... Rfd8 {[%clk 0:01:34.4]} 19. Rfd1 {[%clk 0:02:20.6]}
19... c5 {[%clk 0:01:13.6]} 20. Qc3 {[%clk 0:02:05.8]} 20... Bxb2 {[%clk
0:01:13.6]} 21. Qxb2 {[%clk 0:02:06.5]} 21... cxd4 {[%clk 0:01:11.4]} 22. Nxd4
{[%clk 0:02:04.8]} 22... Bxg2 {[%clk 0:01:11.7]} 23. Kxg2 {[%clk 0:02:05.6]}
23... Rxc4 {[%clk 0:01:08]} 24. Nxe6 {[%clk 0:01:46]} 24... Qxe6 {[%clk
0:00:47.8]} 25. Rxd8+ {[%clk 0:01:44.1]} 25... Kh7 {[%clk 0:00:44.3]} 26. Rxc4
{[%clk 0:01:44.7]} 26... Qxc4 {[%clk 0:00:44.9]} 27. Qb1+ {[%clk 0:01:44]} 27...
g6 {[%clk 0:00:40.5]} 28. Qd3 {[%clk 0:01:42]} 28... Qxa2 {[%clk 0:00:35.2]} 29.
h3 {[%clk 0:01:40]} 29... a5 {[%clk 0:00:27.3]} 30. Rb8 {[%clk 0:01:37.2]} 30...
Qb2 {[%clk 0:00:17.4]} 31. Qd8 {[%clk 0:01:34.7]} 31... g5 {[%clk 0:00:07.4]}
32. Qc7 {[%clk 0:01:25.3]} 32... Qb3 {[%clk 0:00:07.4]} 33. Rxb7 {[%clk
0:01:22.8]} 33... Qd5+ {[%clk 0:00:07.3]} 34. Kh2 {[%clk 0:01:22.4]} 34... Kg7
{[%clk 0:00:08.8]} 35. Ra7 {[%clk 0:01:18.8]} 35... Qe6 {[%clk 0:00:08]} 36. e3
{[%clk 0:01:15]} 36... a4 {[%clk 0:00:04]} 37. Rxa4 {[%clk 0:01:13.1]} 37... Ne4
{[%clk 0:00:04.6]} 38. Qc4 {[%clk 0:01:06.8]} 38... Qf5 {[%clk 0:00:05.4]} 39.
Qxe4 {[%clk 0:01:07.3]} 39... Qxf2+ {[%clk 0:00:06.6]} 40. Qg2 {[%clk
0:01:08.4]} 40... Qxe3 {[%clk 0:00:07.8]} 41. Qb2+ {[%clk 0:01:08.4]} 1-0

[Event "*** Titled Tuesday Blitz"]
[Site "Chess.com"]
[Date "2018.08.07"]
[Round "2"]
[White "W_Amadeus"]
[Black "Zhigalko_Sergei"]
[Result "0-1"]
[WhiteElo "2589"]
[BlackElo "2862"]
[TimeControl "180+2"]
[EndTime "13:21:21 PDT"]
[Termination "Zhigalko_Sergei won by resignation"]

1. d4 {[%clk 0:03:01.9]} 1... Nf6 {[%clk 0:02:57.9]} 2. c4 {[%clk 0:03:01.9]}
2... e6 {[%clk 0:02:59.2]} 3. Nf3 {[%clk 0:03:02.4]} 3... b6 {[%clk 0:03:00.2]}
4. g3 {[%clk 0:03:03]} 4... Ba6 {[%clk 0:02:57.9]} 5. b3 {[%clk 0:03:03.7]} 5...
Bb4+ {[%clk 0:02:58.8]} 6. Bd2 {[%clk 0:03:04.8]} 6... Be7 {[%clk 0:03:00.3]} 7.
Nc3 {[%clk 0:03:06.2]} 7... O-O {[%clk 0:03:01]} 8. Bg2 {[%clk 0:03:00.1]} 8...
c6 {[%clk 0:03:01.7]} 9. e4 {[%clk 0:02:59.9]} 9... d5 {[%clk 0:03:03.6]} 10.
exd5 {[%clk 0:02:58.7]} 10... cxd5 {[%clk 0:03:05.5]} 11. Ne5 {[%clk 0:02:59.1]}
11... Bb7 {[%clk 0:03:00.4]} 12. O-O {[%clk 0:02:56.8]} 12... Nc6 {[%clk
0:03:01.4]} 13. Bf4 {[%clk 0:02:57.2]} 13... Rc8 {[%clk 0:02:58.2]} 14. Rc1
{[%clk 0:02:41.1]} 14... Na5 {[%clk 0:02:57.9]} 15. Qe2 {[%clk 0:02:18.6]} 15...
h6 {[%clk 0:02:55.7]} 16. Rfd1 {[%clk 0:02:14.6]} 16... Re8 {[%clk 0:02:54.4]}
17. Bh3 {[%clk 0:01:40.5]} 17... Ba3 {[%clk 0:02:44.2]} 18. Rc2 {[%clk
0:01:37.2]} 18... a6 {[%clk 0:02:39.6]} 19. Bg2 {[%clk 0:01:21.3]} 19... Qe7
{[%clk 0:02:24]} 20. Na4 {[%clk 0:01:11.1]} 20... Qd8 {[%clk 0:02:22.1]} 21. c5
{[%clk 0:00:57.8]} 21... bxc5 {[%clk 0:02:17.4]} 22. Nxc5 {[%clk 0:00:52.9]}
22... Bxc5 {[%clk 0:02:12.8]} 23. Rxc5 {[%clk 0:00:52.2]} 23... Rxc5 {[%clk
0:02:11.7]} 24. dxc5 {[%clk 0:00:54.1]} 24... Nd7 {[%clk 0:02:06.4]} 25. c6
{[%clk 0:00:22.9]} 25... Nxc6 {[%clk 0:01:58.5]} 26. Nxc6 {[%clk 0:00:23.7]}
26... Bxc6 {[%clk 0:02:00.4]} 27. Qxa6 {[%clk 0:00:24.9]} 27... Qa8 {[%clk
0:01:57.6]} 28. Qxa8 {[%clk 0:00:23.9]} 28... Rxa8 {[%clk 0:01:59.5]} 29. a4
{[%clk 0:00:24.1]} 29... g5 {[%clk 0:01:44.9]} 30. Be3 {[%clk 0:00:22.3]} 30...
Nf6 {[%clk 0:01:14.8]} 31. Rc1 {[%clk 0:00:22.7]} 31... Be8 {[%clk 0:01:12.8]}
32. Bd4 {[%clk 0:00:21.5]} 32... Ne4 {[%clk 0:01:13.8]} 33. Bxe4 {[%clk
0:00:22]} 33... dxe4 {[%clk 0:01:15.7]} 34. Rc7 {[%clk 0:00:20.2]} 34... Rd8
{[%clk 0:01:09.8]} 35. Bf6 {[%clk 0:00:19.7]} 35... Rd1+ {[%clk 0:01:11.7]} 36.
Kg2 {[%clk 0:00:20.6]} 36... Kh7 {[%clk 0:01:13.6]} 37. h4 {[%clk 0:00:09.1]}
37... Kg6 {[%clk 0:01:14]} 38. hxg5 {[%clk 0:00:10]} 38... hxg5 {[%clk
0:01:15.9]} 39. Bc3 {[%clk 0:00:07.9]} 39... Rb1 {[%clk 0:01:11.8]} 40. Rc8
{[%clk 0:00:05.2]} 40... Rxb3 {[%clk 0:01:11]} 41. Rxe8 {[%clk 0:00:04.5]} 41...
Rxc3 {[%clk 0:01:12.2]} 42. a5 {[%clk 0:00:05.9]} 42... Ra3 {[%clk 0:01:12.9]}
43. Ra8 {[%clk 0:00:06.7]} 43... Ra2 {[%clk 0:01:13.9]} 44. Kf1 {[%clk
0:00:07.2]} 44... Kf5 {[%clk 0:01:09.7]} 45. a6 {[%clk 0:00:08.2]} 45... Kg4
{[%clk 0:01:10.7]} 46. Rf8 {[%clk 0:00:04.5]} 46... f5 {[%clk 0:01:10]} 47. Ra8
{[%clk 0:00:04.9]} 47... Kf3 {[%clk 0:01:10.9]} 48. Ke1 {[%clk 0:00:06.2]} 48...
Ra1+ {[%clk 0:01:10.3]} 49. Kd2 {[%clk 0:00:07.3]} 49... Kxf2 {[%clk 0:01:12.2]}
0-1

[Event "*** Titled Tuesday Blitz"]
[Site "Chess.com"]
[Date "2018.08.07"]
[Round "2"]
[White "LittlePeasant"]
[Black "DoctorSocrates"]
[Result "0-1"]
[WhiteElo "2781"]
[BlackElo "2530"]
[TimeControl "180+2"]
[EndTime "13:21:25 PDT"]
[Termination "DoctorSocrates won by resignation"]

1. e4 {[%clk 0:03:01.9]} 1... e6 {[%clk 0:03:00.5]} 2. d4 {[%clk 0:03:02.1]}
2... d5 {[%clk 0:03:01.5]} 3. Nc3 {[%clk 0:03:03.5]} 3... Bb4 {[%clk 0:03:01.3]}
4. e5 {[%clk 0:03:04.5]} 4... c5 {[%clk 0:03:02.6]} 5. a3 {[%clk 0:03:05.9]}
5... Bxc3+ {[%clk 0:03:04]} 6. bxc3 {[%clk 0:03:07.8]} 6... Ne7 {[%clk
0:03:05.4]} 7. h4 {[%clk 0:03:09]} 7... Qa5 {[%clk 0:03:05.9]} 8. Bd2 {[%clk
0:03:06.3]} 8... Nbc6 {[%clk 0:03:06.9]} 9. h5 {[%clk 0:03:05.9]} 9... h6 {[%clk
0:03:07.4]} 10. Nf3 {[%clk 0:02:58.9]} 10... Bd7 {[%clk 0:03:07.2]} 11. Rh4
{[%clk 0:02:49.2]} 11... Nf5 {[%clk 0:03:01.8]} 12. Rg4 {[%clk 0:02:49.6]} 12...
Qa4 {[%clk 0:02:44.1]} 13. Bd3 {[%clk 0:02:35]} 13... Nce7 {[%clk 0:02:42.8]}
14. Rf4 {[%clk 0:02:02.3]} 14... c4 {[%clk 0:02:35.5]} 15. Bf1 {[%clk
0:01:41.2]} 15... g5 {[%clk 0:02:15.7]} 16. hxg6 {[%clk 0:01:33.9]} 16... fxg6
{[%clk 0:02:15.9]} 17. g4 {[%clk 0:01:23.5]} 17... g5 {[%clk 0:02:14.9]} 18.
gxf5 {[%clk 0:01:24.6]} 18... exf5 {[%clk 0:02:15.5]} 19. Qb1 {[%clk 0:00:51.6]}
19... b6 {[%clk 0:02:01.8]} 20. Bh3 {[%clk 0:00:43]} 20... gxf4 {[%clk 0:02:01]}
21. Nh4 {[%clk 0:00:38.1]} 21... Be6 {[%clk 0:01:59.9]} 22. Bxf4 {[%clk
0:00:38.6]} 22... Kd7 {[%clk 0:01:58.3]} 23. Kd2 {[%clk 0:00:39.1]} 23... Rag8
{[%clk 0:01:57.7]} 24. Qb4 {[%clk 0:00:37.2]} 24... Qxb4 {[%clk 0:01:56.2]} 25.
axb4 {[%clk 0:00:39.1]} 25... Ra8 {[%clk 0:01:57.4]} 26. b5 {[%clk 0:00:39.4]}
26... Kc7 {[%clk 0:01:46.2]} 27. Ke3 {[%clk 0:00:39.5]} 27... Kb7 {[%clk
0:01:46.7]} 28. Ng2 {[%clk 0:00:37.5]} 28... a5 {[%clk 0:01:45.5]} 29. bxa6+
{[%clk 0:00:34.1]} 29... Rxa6 {[%clk 0:01:43.9]} 30. Rb1 {[%clk 0:00:35.5]}
30... Rha8 {[%clk 0:01:33.4]} 31. Bg3 {[%clk 0:00:32.6]} 31... Ra1 {[%clk
0:01:27.6]} 32. Rxa1 {[%clk 0:00:33.6]} 32... Rxa1 {[%clk 0:01:27.5]} 33. Nf4
{[%clk 0:00:35.5]} 33... Bf7 {[%clk 0:01:16.8]} 34. Bh4 {[%clk 0:00:30.8]} 34...
Ng6 {[%clk 0:01:17.2]} 35. Nxg6 {[%clk 0:00:30.3]} 35... Bxg6 {[%clk 0:01:19.1]}
36. Kf4 {[%clk 0:00:32]} 36... Rh1 {[%clk 0:01:17.9]} 37. Kg3 {[%clk 0:00:28.2]}
37... Kc6 {[%clk 0:01:12.1]} 38. Bg2 {[%clk 0:00:14.3]} 38... f4+ {[%clk
0:01:03.8]} 39. Kg4 {[%clk 0:00:14.3]} 39... Rg1 {[%clk 0:01:04.6]} 40. Kh3
{[%clk 0:00:14.3]} 40... Bf5+ {[%clk 0:01:00.8]} 41. Kh2 {[%clk 0:00:15.4]}
41... Rc1 {[%clk 0:01:02.3]} 42. Bf3 {[%clk 0:00:14.9]} 42... Rxc2 {[%clk
0:01:02.6]} 43. Kg2 {[%clk 0:00:16.4]} 43... Rxc3 {[%clk 0:01:02.8]} 44. Bf6
{[%clk 0:00:17.7]} 44... Bh3+ {[%clk 0:00:56.8]} 45. Kxh3 {[%clk 0:00:18.6]}
45... Rxf3+ {[%clk 0:00:57.7]} 46. Kg4 {[%clk 0:00:20.5]} 46... Rxf2 {[%clk
0:00:58.8]} 47. Kf5 {[%clk 0:00:22.4]} 47... c3 {[%clk 0:00:58.9]} 48. e6 {[%clk
0:00:24.3]} 48... Re2 {[%clk 0:00:59.1]} 49. Be5 {[%clk 0:00:25.8]} 49... c2
{[%clk 0:00:58.7]} 50. Kf6 {[%clk 0:00:27.4]} 50... c1=Q {[%clk 0:00:54]} 51.
Kf7 {[%clk 0:00:28.9]} 51... Kb7 {[%clk 0:00:53]} 52. e7 {[%clk 0:00:29.7]}
52... Qc6 {[%clk 0:00:54.3]} 0-1

[Event "*** Titled Tuesday Blitz"]
[Site "Chess.com"]
[Date "2018.08.07"]
[Round "2"]
[White "GMMelik"]
[Black "Keranke"]
[Result "1/2-1/2"]
[WhiteElo "2605"]
[BlackElo "2828"]
[TimeControl "180+2"]
[EndTime "13:21:27 PDT"]
[Termination "Game drawn by repetition"]

1. d4 {[%clk 0:03:01.9]} 1... g6 {[%clk 0:03:00]} 2. e4 {[%clk 0:03:01.4]} 2...
Bg7 {[%clk 0:03:01.1]} 3. Nc3 {[%clk 0:03:01.1]} 3... d6 {[%clk 0:03:02.5]} 4.
Nf3 {[%clk 0:03:01.1]} 4... a6 {[%clk 0:03:03.8]} 5. a4 {[%clk 0:03:01.8]} 5...
b6 {[%clk 0:03:03.8]} 6. Be2 {[%clk 0:02:47.6]} 6... Bb7 {[%clk 0:03:04.2]} 7.
O-O {[%clk 0:02:48.2]} 7... Nd7 {[%clk 0:03:05.1]} 8. Re1 {[%clk 0:02:15.7]}
8... e6 {[%clk 0:03:05.6]} 9. Bf1 {[%clk 0:02:15.9]} 9... Ne7 {[%clk 0:03:05.5]}
10. h3 {[%clk 0:02:16.6]} 10... O-O {[%clk 0:03:05.8]} 11. Be3 {[%clk
0:02:10.6]} 11... h6 {[%clk 0:03:02.7]} 12. Qd2 {[%clk 0:02:11.3]} 12... g5
{[%clk 0:03:00.6]} 13. Rad1 {[%clk 0:02:09.5]} 13... Ng6 {[%clk 0:03:01.1]} 14.
d5 {[%clk 0:02:05.2]} 14... Qe7 {[%clk 0:02:54.8]} 15. Nd4 {[%clk 0:02:05.8]}
15... Nde5 {[%clk 0:02:48.8]} 16. b3 {[%clk 0:01:50.2]} 16... Kh8 {[%clk
0:02:46.1]} 17. g3 {[%clk 0:01:25.1]} 17... Rg8 {[%clk 0:02:42.7]} 18. Bg2
{[%clk 0:01:25.1]} 18... Raf8 {[%clk 0:02:35.9]} 19. Kh2 {[%clk 0:01:18.2]}
19... Qd7 {[%clk 0:02:15.1]} 20. Qe2 {[%clk 0:01:19.2]} 20... c5 {[%clk
0:01:50.3]} 21. dxc6 {[%clk 0:01:18.5]} 21... Nxc6 {[%clk 0:01:51.3]} 22. Qh5
{[%clk 0:01:09.1]} 22... Qd8 {[%clk 0:01:32.6]} 23. Nxc6 {[%clk 0:00:54.3]}
23... Bxc6 {[%clk 0:01:34.5]} 24. Bd4 {[%clk 0:00:53.5]} 24... Kh7 {[%clk
0:01:34.7]} 25. Bxg7 {[%clk 0:00:50.9]} 25... Rxg7 {[%clk 0:01:30.6]} 26. e5
{[%clk 0:00:48.8]} 26... Bxg2 {[%clk 0:01:28.7]} 27. Kxg2 {[%clk 0:00:50.3]}
27... Qa8+ {[%clk 0:01:29.7]} 28. f3 {[%clk 0:00:43.5]} 28... dxe5 {[%clk
0:01:28.6]} 29. Ne4 {[%clk 0:00:43.9]} 29... f6 {[%clk 0:01:26.8]} 30. Rd6
{[%clk 0:00:43.6]} 30... b5 {[%clk 0:01:17.8]} 31. Rxe6 {[%clk 0:00:43.4]} 31...
Rgf7 {[%clk 0:01:14.2]} 32. Nxg5+ {[%clk 0:00:36.7]} 32... fxg5 {[%clk
0:01:08.9]} 33. Qxg6+ {[%clk 0:00:29.5]} 33... Kh8 {[%clk 0:01:10.2]} 34. Re3
{[%clk 0:00:22.5]} 34... Qd8 {[%clk 0:01:08]} 35. R6xe5 {[%clk 0:00:17.3]} 35...
Rf6 {[%clk 0:01:09.1]} 36. Qd3 {[%clk 0:00:16.3]} 36... Qxd3 {[%clk 0:01:00.3]}
37. Rxd3 {[%clk 0:00:18.2]} 37... bxa4 {[%clk 0:01:02.2]} 38. bxa4 {[%clk
0:00:19.3]} 38... Rc8 {[%clk 0:01:04.1]} 39. c3 {[%clk 0:00:19.5]} 39... Rc4
{[%clk 0:01:05.5]} 40. Re4 {[%clk 0:00:21]} 40... Rc5 {[%clk 0:01:06.1]} 41.
Red4 {[%clk 0:00:21.6]} 41... Kg7 {[%clk 0:01:03.5]} 42. Rd7+ {[%clk 0:00:22.7]}
42... Kg6 {[%clk 0:01:04.5]} 43. R7d6 {[%clk 0:00:24.3]} 43... Ra5 {[%clk
0:01:05.3]} 44. Rxf6+ {[%clk 0:00:25.3]} 44... Kxf6 {[%clk 0:01:07.2]} 45. Rd4
{[%clk 0:00:26.7]} 45... Ke5 {[%clk 0:01:06.1]} 46. Rc4 {[%clk 0:00:27.6]} 46...
Kd5 {[%clk 0:01:05.4]} 47. Rd4+ {[%clk 0:00:28.9]} 47... Ke5 {[%clk 0:01:06.8]}
48. h4 {[%clk 0:00:30.3]} 48... Rc5 {[%clk 0:01:06.9]} 49. hxg5 {[%clk
0:00:31.6]} 49... hxg5 {[%clk 0:01:07.9]} 50. Rg4 {[%clk 0:00:32.9]} 50... Kf5
{[%clk 0:01:08.1]} 51. Rd4 {[%clk 0:00:32.8]} 51... Rxc3 {[%clk 0:01:08.5]} 52.
Rd5+ {[%clk 0:00:33.4]} 52... Kg6 {[%clk 0:01:05.3]} 53. Rd6+ {[%clk 0:00:33.6]}
53... Kf5 {[%clk 0:01:06.9]} 54. Rxa6 {[%clk 0:00:34.5]} 54... Ra3 {[%clk
0:01:07.1]} 55. Ra5+ {[%clk 0:00:35.4]} 55... Kf6 {[%clk 0:01:07.2]} 56. Kh3
{[%clk 0:00:36.7]} 56... Rxf3 {[%clk 0:01:07.6]} 57. Kg4 {[%clk 0:00:37.9]}
57... Ra3 {[%clk 0:01:08.5]} 58. Ra6+ {[%clk 0:00:39.2]} 58... Ke5 {[%clk
0:01:09.8]} 59. Ra5+ {[%clk 0:00:39.1]} 59... Kf6 {[%clk 0:01:10.9]} 60. Rf5+
{[%clk 0:00:39.2]} 60... Ke6 {[%clk 0:01:11.9]} 61. Ra5 {[%clk 0:00:40.4]} 61...
Kf6 {[%clk 0:01:12.6]} 1/2-1/2